bitfinex/quotes_ETHUSD_20250824
["timestamp","ask_amount","ask_price","bid_price","bid_amount"]
[1756045059139,0.002,4792.3,4792.2,0.3954]
[1756045059388,0.002,4792.3,4792.2,4.0464]
[1756045059672,0.002,4792.3,4792.2,5.18387]
[1756045060183,0.002,4792.3,4792.2,0.8557]
[1756045060384,0.002,4792.3,4792.2,4.5047]
[1756045061681,0.002,4792.3,4792.2,4.5037]
[1756045064999,0.002,4792.3,4792.2,5.0597]
[1756045065797,0.002,4792.3,4792.2,10.14642426]
[1756045065954,0.002,4792.3,4792.2,11.53225109]
[1756045066277,0.002,4792.3,4792.2,6.44552683]
[1756045066676,0.002,4792.3,4792.2,5.0597]
[1756045067674,0.002,4792.3,4792.2,8.0597]
[1756045067882,0.002,4792.3,4792.2,8.0527]
[1756045068376,0.002,4792.3,4792.2,10.13942426]
[1756045068700,0.002,4792.3,4792.2,8.0527]
[1756045068901,0.002,4792.3,4792.2,9.02047]
[1756045069760,0.002,4792.3,4792.2,9.01647]
[1756045071704,0.002,4792.3,4792.2,9.01547]
[1756045072271,0.002,4792.3,4792.2,5.35347]
[1756045072475,0.002,4792.3,4792.2,4.89317]
[1756045072910,0.002,4792.3,4792.2,5.35257]
[1756045073423,0.04,4794.8,4793.5,0.66]
[1756045073580,0.04,4794.8,4794.3,6.04701023]
[1756045073773,0.04,4794.8,4794.3,14.89590102]
[1756045074014,0.04,4794.8,4794.7,2.74563622]
[1756045074184,0.04,4795.4,4794.8,3.66]
[1756045074383,0.04,4795.4,4795.0,6.04670573]
[1756045074636,0.04,4795.4,4795.0,9.32962373]
[1756045074908,0.04,4795.4,4795.0,11.46505037]
[1756045075109,0.04,4795.4,4795.0,14.8759801]
[1756045075313,0.04,4795.4,4795.0,9.51500237]
[1756045075612,0.04,4795.4,4795.0,9.41100237]
[1756045077013,0.04,4795.4,4794.3,6.14510102]
[1756045077213,0.04,4795.4,4795.0,0.3012]
[1756045077417,0.04,4795.4,4795.0,4.6102]
[1756045077606,0.04,4795.4,4795.0,5.0696]
[1756045078317,0.04,4795.4,4795.0,1.4206]
[1756045078525,0.04,4795.4,4795.0,5.21266]
[1756045078740,0.04,4795.4,4795.0,8.21266]
[1756045080126,0.04,4795.4,4795.0,5.251]
[1756045080435,0.04,4795.4,4795.0,5.911]
[1756045080634,0.04,4795.4,4795.0,6.6716]
[1756045080939,0.3055,4795.1,4795.0,5.251]
[1756045081501,0.2495,4795.1,4795.0,5.251]
[1756045081701,0.2495,4795.1,4795.0,7.1987]
[1756045082162,0.2495,4795.1,4795.0,10.1987]
[1756045082642,0.2515,4795.1,4795.0,1.604]
[1756045082829,0.2515,4795.1,4795.0,5.265]
[1756045083405,0.2515,4795.1,4795.0,6.2262]
[1756045083611,0.2515,4795.1,4795.0,6.6856]
[1756045084020,0.2515,4795.1,4795.0,9.6856]
[1756045084221,0.2515,4795.1,4795.0,10.65616]
[1756045084513,0.5535,4795.1,4795.0,1.604]
[1756045084734,0.5535,4795.1,4795.0,5.267]
[1756045084930,0.7532,4795.1,4795.0,1.604]
[1756045085346,0.7532,4795.1,4795.0,3.665]
[1756045085522,0.5535,4795.1,4795.0,3.665]
[1756045085849,0.2515,4795.1,4795.0,4.0439]
[1756045086059,0.2515,4795.1,4795.0,8.4645]
[1756045086431,0.2515,4795.1,4795.0,4.7995]
[1756045086733,0.2515,4795.1,4795.0,7.7089]
[1756045087061,0.2515,4795.1,4795.0,7.0489]
[1756045087221,0.3075,4795.1,4795.0,3.669]
[1756045088459,0.2515,4795.1,4795.0,3.669]
[1756045088659,0.2515,4795.1,4795.0,3.9702]
[1756045088957,0.2515,4795.1,4795.0,8.0896]
[1756045089163,0.2515,4795.1,4795.0,10.17510573]
[1756045089345,0.2515,4795.1,4795.0,11.1926163]
[1756045089554,0.2515,4795.1,4795.0,9.10711057]
[1756045089734,0.2515,4795.1,4795.0,11.1926163]
[1756045090067,0.2515,4795.1,4795.0,41.1926163]
[1756045090245,0.04,4795.4,4795.3,0.66]
[1756045090447,0.04,4795.4,4795.3,25.718386]
[1756045090678,0.04,4796.4,4795.7,2.866]
[1756045090834,0.04,4796.4,4796.3,5.25214047]
[1756045091043,0.04,4796.4,4796.3,8.268123]
[1756045091257,0.04,4796.4,4796.3,18.30343177]
[1756045091457,0.04,4796.4,4796.3,16.67456777]
[1756045091657,0.04,4796.4,4796.3,16.00802677]
[1756045091860,0.04,4796.4,4796.3,5.4077123]
[1756045092063,0.04,4796.4,4796.3,7.6691123]
[1756045092378,0.04,4796.4,4796.3,4.6701123]
[1756045092674,0.04,4796.4,4796.3,3.683]
[1756045092872,0.096,4796.4,4796.3,3.683]
[1756045093036,0.04,4796.4,4796.3,3.685]
[1756045093838,0.04,4796.4,4796.3,8.1056]
[1756045094074,0.04,4796.4,4796.3,12.85876847]
[1756045094274,0.04,4796.4,4796.3,8.34268213]
[1756045094446,0.5393,4796.4,4796.3,3.695]
[1756045094650,0.04,4796.4,4796.3,3.695]
[1756045094847,0.0999,4796.4,4796.2,1.603]
[1756045095038,0.0999,4796.4,4796.3,3.698]
[1756045095236,0.04,4796.4,4796.2,1.603]
[1756045095572,0.5032,4796.3,4796.2,1.603]
[1756045095771,0.5032,4796.3,4796.2,5.3]
[1756045095989,0.5032,4796.3,4796.2,5.404]
[1756045096476,0.5032,4796.3,4796.2,1.707]
[1756045096681,0.76599676,4796.3,4796.1,3.696]
[1756045096982,0.4433,4796.2,4796.1,3.696]
[1756045097183,0.5032,4796.2,4796.1,3.696]
[1756045098047,0.5032,4796.2,4796.1,3.695]
[1756045098261,0.5032,4796.2,4795.9,0.104]
[1756045098466,0.0599,4796.2,4796.0,3.695]
[1756045098663,0.0599,4796.2,4796.0,3.799]
[1756045099476,0.0619,4796.2,4796.0,3.799]
[1756045099777,0.002,4796.2,4796.1,0.104]
[1756045100347,0.002,4796.2,4796.1,3.801]
[1756045101274,0.002,4796.2,4796.1,0.104]
[1756045101444,0.002,4796.2,4796.1,3.8]
[1756045101644,0.058,4796.2,4796.1,3.798]
[1756045101947,0.0028,4796.2,4796.1,4.1798]
[1756045102479,0.0028,4796.2,4796.1,5.502]
[1756045102948,0.0028,4796.2,4796.1,4.846]
[1756045103149,0.0028,4796.2,4796.1,5.506]
[1756045103345,0.0028,4796.2,4796.1,7.59102741]
[1756045104054,0.0028,4796.2,4796.1,29.14305741]
[1756045104253,0.0028,4796.2,4796.1,21.86409841]
[1756045104578,0.0028,4796.2,4796.1,21.10308541]
[1756045105084,0.0028,4796.2,4796.1,20.70899641]
[1756045105448,0.0028,4796.2,4796.1,15.22926541]
[1756045105647,0.0028,4796.2,4796.1,9.78202741]
[1756045105877,0.0028,4796.2,4796.1,8.509]
[1756045106199,0.0028,4796.2,4796.1,4.3895]
[1756045106868,0.0028,4796.2,4796.1,4.849]
[1756045107178,0.0028,4796.2,4796.1,5.509]
[1756045107584,0.0028,4796.2,4796.1,7.59402741]
[1756045108170,0.0028,4796.2,4796.1,19.64920641]
[1756045108374,0.0028,4796.2,4796.1,22.68454141]
[1756045109160,0.0028,4796.2,4796.1,38.08928941]
[1756045109993,1e-08,4796.2,4796.1,38.08928941]
[1756045110305,1e-08,4796.4,4796.3,2.74494047]
[1756045110485,1e-08,4796.4,4796.3,43.50051847]
[1756045110691,1e-08,4796.4,4796.3,43.96001847]
[1756045111972,1e-08,4796.4,4796.3,40.25601847]
[1756045112174,1e-08,4796.4,4796.3,19.09474447]
[1756045112362,1e-08,4796.4,4796.3,20.07753147]
[1756045112688,1e-08,4796.4,4796.3,18.90864547]
[1756045112900,1e-08,4796.4,4796.3,13.40301847]
[1756045113099,1e-08,4796.4,4796.3,11.317078]
[1756045113259,1e-08,4796.4,4796.3,11.92014047]
[1756045114111,1e-08,4796.4,4796.3,19.13960047]
[1756045114273,1e-08,4796.4,4796.3,22.94560047]
[1756045114660,1e-08,4796.4,4796.3,16.51601247]
[1756045114856,1e-08,4796.4,4796.3,15.30214047]
[1756045115103,1e-08,4796.4,4796.3,17.07904389]
[1756045115265,0.11080001,4796.4,4796.3,3.37990342]
[1756045115463,0.57970001,4796.4,4796.3,5.306]
[1756045115662,0.11080001,4796.4,4796.3,5.306]
[1756045115909,0.57970001,4796.4,4796.3,5.306]
[1756045116327,0.57970001,4796.4,4796.3,1.603]
[1756045116531,0.57970001,4796.4,4794.8,0.001]
[1756045116532,0.57970001,4796.4,4795.8,0.001]
[1756045116829,3.0,4796.3,4795.8,0.001]
[1756045116990,0.1098,4795.9,4795.8,0.001]
[1756045117593,0.5752,4795.9,4795.8,0.001]
[1756045118009,0.1098,4795.9,4795.8,0.001]
[1756045118724,0.00200001,4796.4,4795.8,0.001]
[1756045118898,0.00200001,4796.4,4795.9,1.603]
[1756045119100,0.00200001,4796.4,4796.0,4.247]
[1756045119425,0.4726,4796.3,4796.0,4.247]
[1756045119736,0.2786,4796.2,4796.1,3.715]
[1756045119953,0.5768,4796.2,4796.1,3.715]
[1756045120260,0.5768,4796.2,4796.1,3.714]
[1756045121544,0.5768,4796.2,4796.1,3.712]
[1756045122153,0.2982,4796.2,4796.1,3.712]
[1756045122359,0.00200001,4796.4,4796.1,4.2436]
[1756045122562,0.00200001,4796.4,4796.1,3.712]
[1756045123739,0.00200001,4796.4,4796.2,3.711]
[1756045124051,0.00200001,4796.4,4796.3,3.71]
[1756045124218,0.00200001,4796.4,4796.3,4.6767]
[1756045124412,0.00200001,4796.4,4796.3,5.1362]
[1756045124614,0.00200001,4796.4,4796.3,4.40092]
[1756045125013,0.00200001,4796.4,4796.3,3.727]
[1756045125547,0.00200001,4796.4,4796.3,3.831]
[1756045126017,0.10820001,4796.4,4796.3,3.831]
[1756045126352,0.10820001,4796.4,4796.3,3.83]
[1756045126850,0.10820001,4796.4,4796.3,0.104]
[1756045127016,0.57710001,4796.4,4796.3,3.828]
[1756045127215,0.10820001,4796.4,4796.3,3.828]
[1756045128151,0.10820001,4796.4,4796.3,0.104]
[1756045128354,12.78407489,4796.4,4795.8,0.001]
[1756045128651,0.104,4796.1,4795.8,3.726]
[1756045128868,0.1098,4795.9,4795.8,0.001]
[1756045129016,0.104,4796.1,4795.8,3.725]
[1756045129217,0.1062,4795.9,4795.8,3.725]
[1756045130665,0.10600001,4796.4,4795.8,3.725]
[1756045130666,0.00200001,4796.4,4795.8,3.725]
[1756045131414,0.1098,4795.9,4795.8,0.001]
[1756045131618,0.1098,4795.9,4795.8,3.72]
[1756045131861,0.1098,4795.9,4795.8,3.824]
[1756045132470,0.1098,4795.9,4795.8,3.721]
[1756045132835,0.5494,4795.9,4795.8,3.721]
[1756045133038,3.91015185,4795.9,4795.8,0.001]
[1756045133252,4.92903749,4795.9,4795.3,0.001]
[1756045133457,2.08542147,4795.2,4794.7,3.719]
[1756045133723,0.1124,4794.9,4794.7,3.719]
[1756045134068,2.19794922,4794.9,4794.6,3.719]
[1756045134275,4.63118187,4794.9,4794.6,3.719]
[1756045134424,6.71673109,4794.9,4794.6,3.719]
[1756045134626,4.19478187,4794.9,4794.6,3.719]
[1756045134854,3.1124,4794.9,4794.6,3.719]
[1756045135196,0.1124,4794.9,4794.7,0.104]
[1756045136483,0.5489,4794.9,4794.7,0.104]
[1756045136683,0.5489,4794.9,4794.8,3.719]
[1756045137054,0.5489,4794.9,4794.8,0.001]
[1756045137654,0.6529,4794.9,4794.8,0.001]
[1756045137884,0.2197,4794.9,4794.8,0.001]
[1756045139991,0.104,4795.3,4794.8,0.001]
[1756045140286,1.59665302,4795.2,4794.8,0.001]
[1756045140492,0.32635531,4795.6,4794.8,0.001]
[1756045140688,0.32635531,4795.6,4795.1,0.104]
[1756045140856,0.32635531,4795.6,4795.5,0.104]
[1756045141054,0.104,4796.3,4795.5,0.104]
[1756045141257,0.35456,4796.2,4795.5,0.104]
[1756045141562,0.2164,4795.6,4795.5,3.711]
[1756045141758,0.2164,4795.6,4795.2,1.604]
[1756045141759,0.6528,4795.6,4795.2,1.604]
[1756045142084,12.20697488,4795.3,4795.2,1.604]
[1756045142291,12.75587488,4795.3,4795.0,3.711]
[1756045142498,3.4332,4795.2,4794.8,0.001]
[1756045142808,2.30834922,4794.9,4794.8,0.001]
[1756045143005,0.2228,4794.9,4793.9,3.711]
[1756045143215,14.18891912,4794.0,4793.7,0.104]
[1756045143419,0.104,4794.9,4793.7,0.104]
[1756045143574,0.104,4794.5,4793.8,0.125]
[1756045143993,0.56292504,4794.4,4793.8,0.125]
[1756045144307,0.56292504,4794.4,4793.9,3.711]
[1756045144902,0.1124,4794.0,4793.9,3.711]
[1756045145090,0.104,4794.0,4793.9,3.711]
[1756045145420,0.104,4794.3,4793.9,3.711]
[1756045145623,0.35560551,4794.3,4793.8,0.021]
[1756045145828,3.0,4794.1,4793.8,0.021]
[1756045146118,2.19838427,4793.9,4793.8,0.021]
[1756045146415,5.08602778,4793.8,4791.7,1.604]
[1756045146705,2.08650726,4792.7,4791.7,1.604]
[1756045146873,12.10297488,4792.0,4791.7,1.604]
[1756045147072,0.295,4791.9,4790.8,1.625]
[1756045147272,5.7414549,4791.9,4790.8,5.338]
[1756045147802,5.7414549,4791.9,4790.8,1.625]
[1756045148171,6.06806519,4791.9,4790.8,1.625]
[1756045148590,6.72806519,4791.9,4790.8,1.625]
[1756045148799,2.08696122,4791.7,4790.8,1.625]
[1756045149002,0.295,4790.9,4790.8,1.625]
[1756045149207,0.295,4790.9,4790.8,0.021]
[1756045149593,0.399,4790.9,4790.8,0.021]
[1756045150506,0.104,4791.1,4790.8,0.021]
[1756045150870,3.0,4791.7,4790.8,0.021]
[1756045151071,4.51029749,4791.7,4790.8,0.021]
[1756045151271,0.104,4791.1,4790.8,0.021]
[1756045151879,0.1124,4790.9,4790.8,0.021]
[1756045152695,3.1124,4790.9,4790.8,0.021]
[1756045153086,3.0,4790.9,4790.8,0.021]
[1756045154505,0.43064331,4791.1,4790.8,0.021]
[1756045155416,0.32664331,4791.1,4790.8,0.021]
[1756045155876,0.32664331,4791.1,4790.9,0.5692]
[1756045156208,0.104,4791.6,4790.9,0.5692]
[1756045156507,0.32660196,4792.0,4791.5,0.2859]
[1756045156708,0.43060196,4792.0,4791.5,0.2859]
[1756045156909,0.43060196,4792.0,4791.3,0.104]
[1756045157276,0.32660196,4792.0,4791.0,2.0702]
[1756045157488,0.32660196,4792.0,4791.6,0.104]
[1756045157687,12.10297488,4792.5,4791.9,0.3899]
[1756045158134,12.10297488,4792.5,4791.9,0.104]
[1756045158430,3.0,4792.4,4791.9,0.104]
[1756045160194,0.1378,4792.0,4791.0,1.605]
[1756045160400,0.2418,4792.0,4791.5,3.702]
[1756045160699,0.2418,4792.0,4791.3,0.104]
[1756045162415,0.2418,4792.0,4791.1,3.695]
[1756045162577,0.2418,4792.0,4791.1,3.799]
[1756045163199,0.104,4792.0,4791.1,4.2354]
[1756045164282,0.104,4792.0,4791.2,3.691]
[1756045164488,0.7237944,4792.0,4791.2,3.691]
[1756045164813,12.10297488,4791.7,4791.0,1.605]
[1756045165015,0.104,4791.6,4791.0,5.296]
[1756045165418,15.40597687,4791.5,4791.0,1.605]
[1756045165719,15.40597687,4791.5,4790.6,0.4374]
[1756045165720,0.3051,4791.1,4790.6,0.001]
[1756045165919,15.40597687,4790.9,4790.6,0.001]
[1756045166105,15.40597687,4791.1,4790.6,0.001]
[1756045166311,15.40597687,4791.2,4790.6,0.001]
[1756045166488,0.4472551,4791.1,4790.6,0.001]
[1756045167020,0.1122,4790.9,4790.6,0.001]
[1756045167194,0.4472551,4791.1,4790.6,0.001]
[1756045167401,1.11529542,4791.1,4790.6,0.001]
[1756045167601,0.66804032,4791.1,4790.6,0.001]
[1756045168538,0.4472551,4791.1,4790.6,0.001]
[1756045168697,16.67521664,4791.4,4791.0,0.3106]
[1756045168698,0.4472551,4791.3,4791.0,0.3106]
[1756045168901,0.4472551,4791.3,4791.1,0.4364]
[1756045169105,0.4472551,4791.5,4791.2,0.747]
[1756045169304,0.4472551,4791.4,4791.2,0.3106]
[1756045169493,0.4472551,4791.5,4791.3,0.4364]
[1756045169692,0.4472551,4791.4,4791.3,0.4364]
[1756045169905,0.4472551,4791.9,4791.3,0.747]
[1756045170227,0.4472551,4791.8,4791.3,0.747]
[1756045170526,0.4472551,4791.7,4791.4,0.4364]
[1756045170722,0.4472551,4791.6,4791.5,0.4364]
[1756045170926,0.5594551,4791.6,4791.1,1.605]
[1756045171128,0.4472551,4791.5,4791.1,1.605]
[1756045171297,0.55930252,4791.4,4791.1,1.605]
[1756045171623,0.4472551,4791.3,4791.1,1.605]
[1756045171832,0.4472551,4791.2,4791.1,1.605]
[1756045172244,0.4472551,4791.2,4791.1,1.9156]
[1756045172464,0.4472551,4791.5,4791.1,2.352]
[1756045172664,0.5610191,4792.1,4791.2,0.4364]
[1756045172966,0.44892388,4792.0,4791.2,0.4364]
[1756045173242,0.44892388,4791.9,4791.2,0.4364]
[1756045173447,0.44892388,4791.8,4791.2,0.4364]
[1756045173651,0.99208943,4792.1,4791.2,0.4364]
[1756045173652,0.44892388,4791.7,4791.2,0.4364]
[1756045173956,0.44892388,4791.6,4791.2,0.4364]
[1756045174135,0.44892388,4791.5,4791.2,3.684]
[1756045174335,0.44892388,4791.4,4791.1,1.605]
[1756045174548,0.44892388,4791.3,4791.1,1.605]
[1756045174750,12.13461895,4791.8,4791.1,1.605]
[1756045175048,2.27093928,4791.7,4791.1,1.605]
[1756045175245,0.4495863,4791.6,4791.1,1.605]
[1756045175446,0.4495863,4791.5,4791.1,1.605]
[1756045175648,0.4495863,4791.4,4791.1,1.605]
[1756045175850,0.5535863,4791.3,4791.1,1.605]
[1756045176069,0.4495863,4791.2,4791.1,1.605]
[1756045176937,0.67324684,4791.2,4790.8,0.021]
[1756045177153,0.4495863,4791.1,4790.8,0.021]
[1756045177361,0.104,4790.9,4790.8,0.021]
[1756045177520,0.5535863,4790.9,4790.8,0.021]
[1756045178819,0.4495863,4790.9,4790.8,0.021]
[1756045179322,0.4495863,4790.9,4790.8,0.768]
[1756045179531,0.104,4791.1,4790.8,1.08578382]
[1756045179847,0.5610191,4791.7,4791.0,0.104]
[1756045180051,0.45051282,4791.6,4791.1,3.677]
[1756045180365,0.45051282,4791.5,4791.2,0.4364]
[1756045180534,0.45051282,4791.4,4791.2,0.4364]
[1756045180730,0.45051282,4791.3,4791.2,0.4364]
[1756045180926,0.45051282,4791.3,4791.2,0.747]
[1756045181175,0.45051282,4791.3,4791.2,0.851]
[1756045181477,0.4504964,4791.6,4791.2,1.2019]
[1756045181765,0.5610191,4792.4,4791.5,0.104]
[1756045181963,0.45046972,4792.3,4791.6,0.4364]
[1756045182270,0.45046972,4792.2,4792.0,0.104]
[1756045182570,0.5610191,4792.5,4792.1,0.747]
[1756045182728,0.45040586,4792.4,4792.1,0.747]
[1756045182932,0.45040586,4792.3,4792.1,0.747]
[1756045183133,0.45040586,4792.2,4791.7,3.675]
[1756045183365,0.45040586,4792.1,4791.7,3.675]
[1756045183579,0.45040586,4792.0,4791.8,3.673]
[1756045183758,0.104,4792.3,4792.0,0.3106]
[1756045183957,0.450418,4792.2,4792.0,0.3106]
[1756045184152,0.450418,4792.1,4792.0,0.747]
[1756045184536,0.450418,4792.1,4791.6,0.104]
[1756045184867,0.104,4792.3,4791.7,3.671]
[1756045185070,0.45045743,4792.2,4791.6,0.104]
[1756045185268,0.45045743,4792.1,4791.6,3.774]
[1756045185448,0.45045743,4792.0,4791.6,3.774]
[1756045185646,0.45045743,4792.2,4791.6,3.774]
[1756045185948,0.45045743,4792.1,4791.6,3.774]
[1756045186149,0.45045743,4792.2,4791.6,3.774]
[1756045186348,0.104,4792.3,4791.6,3.774]
[1756045186579,0.67966716,4792.3,4791.6,0.104]
[1756045186738,0.1052,4791.7,4791.3,1.605]
[1756045187473,3.0,4791.6,4791.3,1.605]
[1756045188239,3.0,4791.6,4791.0,0.104]
[1756045188240,0.1063,4791.4,4791.0,3.666]
[1756045188665,0.1063,4791.4,4790.6,1.71]
[1756045188863,15.40451822,4791.0,4790.9,3.666]
[1756045189062,15.50851822,4791.0,4790.9,3.666]
[1756045189449,0.104,4791.0,4790.9,3.9766]
[1756045189666,0.104,4791.0,4790.9,4.413]
[1756045190060,0.104,4791.0,4790.9,0.747]
[1756045190262,0.104,4791.0,4790.9,4.411]
[1756045192781,0.104,4791.5,4790.9,4.518]
[1756045193464,2.20859797,4791.5,4790.9,4.518]
[1756045193664,0.104,4791.5,4790.9,4.518]
[1756045194070,0.104,4791.5,4791.0,3.659]
[1756045194276,3.0,4791.1,4790.9,0.104]
[1756045194582,3.0,4791.1,4790.9,3.657]
[1756045194786,3.0,4791.1,4790.9,3.656]
[1756045194971,3.0,4791.1,4790.6,1.71]
[1756045195173,3.0,4791.1,4791.0,3.656]
[1756045195586,15.40451822,4791.2,4791.0,3.656]
[1756045195587,15.40451822,4791.2,4791.0,4.4008]
[1756045195950,15.40451822,4791.2,4791.0,3.9614]
[1756045196279,0.43056969,4791.5,4791.1,0.4394]
[1756045196479,15.40451822,4791.9,4791.4,0.3054]
[1756045196680,15.40451822,4791.9,4791.5,4.1984]
[1756045196984,0.32656007,4792.5,4791.8,0.3054]
[1756045197190,3.7770103,4792.5,4791.8,0.3054]
[1756045197347,0.45045023,4792.4,4791.5,5.364]
[1756045197683,3.0,4792.3,4791.5,5.364]
[1756045197889,2.59232823,4792.4,4791.5,5.364]
[1756045197890,0.32656007,4792.5,4792.2,0.3054]
[1756045198091,3.43056007,4792.5,4792.1,3.653]
[1756045198803,3.43056007,4792.5,4792.0,3.653]
[1756045198954,3.43056007,4792.5,4791.9,3.652]
[1756045198955,15.40451822,4792.1,4791.9,3.652]
[1756045199299,15.40451822,4792.1,4791.5,5.257]
[1756045199300,0.1153,4792.0,4791.5,5.257]
[1756045199785,0.1153,4792.0,4791.6,3.652]
[1756045199977,0.104,4791.8,4791.6,3.652]
[1756045200374,0.1184,4791.7,4791.6,3.652]
[1756045200595,0.8544734,4791.7,4791.6,3.652]
[1756045200770,0.8544734,4791.7,4791.3,0.001]
[1756045200968,0.7360734,4791.7,4791.3,0.001]
[1756045201297,0.104,4791.8,4791.3,0.001]
[1756045201455,0.104,4791.8,4791.6,0.3054]
[1756045201651,0.104,4791.8,4791.3,0.4404]
[1756045201850,0.104,4791.8,4791.3,0.001]
[1756045202260,0.104,4791.8,4791.7,0.3054]
[1756045202466,3.0,4792.0,4791.7,0.3054]
[1756045202467,3.0,4792.0,4791.7,0.7448]
[1756045204855,0.3056,4791.8,4791.3,3.646]
[1756045205474,0.104,4791.9,4791.7,0.3054]
[1756045205772,3.0,4792.0,4791.7,0.3054]
[1756045206120,3.0,4792.0,4791.8,0.4394]
[1756045206298,3.0,4792.0,4791.9,0.3054]
[1756045206600,0.104,4792.2,4791.9,0.3054]
[1756045207060,0.49229671,4792.2,4791.5,0.104]
[1756045207805,3.0,4792.0,4791.5,0.104]
[1756045208306,0.2537,4791.6,4791.3,3.643]
[1756045209597,15.40451822,4791.5,4791.3,3.643]
[1756045209821,1.71552182,4791.4,4791.3,0.001]
[1756045210530,6.80259449,4791.4,4791.3,0.001]
[1756045210719,4.71552182,4791.4,4791.3,0.001]
[1756045211148,6.80259449,4791.4,4791.3,0.001]
[1756045211832,6.80259449,4791.4,4790.6,0.001]
[1756045211833,18.40451822,4790.9,4790.6,0.001]
[1756045212037,2.08763908,4790.1,4789.8,0.02]
[1756045212197,0.748551,4790.1,4789.3,0.001]
[1756045212555,20.49228806,4789.8,4789.3,0.001]
[1756045212695,3.0,4789.7,4789.3,0.001]
[1756045213007,0.2979,4789.4,4789.3,0.001]
[1756045213207,0.68619671,4789.4,4789.3,0.001]
[1756045213919,1.01291611,4789.4,4789.3,0.001]
[1756045214299,2.08805932,4789.2,4787.6,1.605]
[1756045214534,15.40451822,4788.4,4787.6,1.605]
[1756045215825,15.40451822,4788.4,4787.1,4.0814]
[1756045217936,17.492928,4788.4,4787.1,0.4394]
[1756045218137,17.492928,4788.4,4786.9,3.638]
[1756045218138,0.003,4787.9,4786.9,3.638]
[1756045218439,4.56582182,4788.3,4787.1,0.4394]
[1756045219032,4.56582182,4788.3,4786.8,3.658]
[1756045219206,4.56582182,4788.3,4787.9,0.4394]
[1756045220235,4.56582182,4788.3,4787.4,0.4394]
[1756045220717,4.56582182,4788.3,4786.8,3.658]
[1756045220923,4.56582182,4788.3,4787.0,0.4394]
[1756045221622,4.56582182,4788.3,4786.8,0.4594]
[1756045221963,0.1048,4788.0,4787.3,0.1048]
[1756045222112,0.1108,4787.9,4787.3,0.1048]
[1756045222308,0.1108,4787.9,4786.8,0.02]
[1756045222510,0.97911388,4788.0,4787.1,0.1048]
[1756045223243,0.1048,4788.0,4787.9,0.2946]
[1756045223724,0.1048,4788.0,4787.9,0.7413]
[1756045224546,0.32680483,4788.4,4787.9,0.7413]
[1756045224770,0.32680483,4788.4,4788.0,0.4467]
[1756045224924,0.32680483,4788.4,4788.3,0.2946]
[1756045225127,0.32680483,4788.4,4788.3,0.7413]
[1756045225538,0.32680483,4788.4,4788.3,0.2946]
[1756045225848,0.32680483,4788.4,4788.3,0.7413]
[1756045226813,0.32680483,4788.4,4788.3,0.8461]
[1756045227260,0.1048,4789.1,4788.3,0.8461]
[1756045227436,0.1048,4789.1,4788.4,0.4467]
[1756045227746,0.1048,4789.1,4789.0,0.2946]
[1756045227917,0.1048,4789.1,4788.4,0.4467]
[1756045228951,0.1048,4789.1,4789.0,0.2946]
[1756045229335,16.40451822,4789.3,4789.0,0.7413]
[1756045229336,1.0,4789.3,4789.0,0.7413]
[1756045229515,1.0,4789.3,4789.1,0.4467]
[1756045229715,1.0,4789.3,4789.2,0.2946]
[1756045230154,1.0,4789.3,4789.2,0.7413]
[1756045233120,2.0,4789.3,4789.2,0.7413]
[1756045233324,2.0,4789.3,4789.2,1.45421]
[1756045233545,2.0,4789.3,4789.2,2.11421]
[1756045234360,2.0,4789.3,4789.2,4.2022414]
[1756045234559,2.0,4789.3,4789.2,7.2022414]
[1756045234872,2.002,4789.3,4789.2,7.2022414]
[1756045235557,2.002,4789.3,4789.2,7.36036449]
[1756045236753,2.002,4789.3,4789.2,10.8302414]
[1756045237454,2.002,4789.3,4789.2,10.7254414]
[1756045237633,2.002,4789.3,4789.2,10.8302414]
[1756045238224,2.002,4789.3,4789.2,10.98963462]
[1756045238451,2.002,4789.3,4789.2,7.2022414]
[1756045238640,2.002,4789.3,4789.2,10.8292414]
[1756045242077,2.002,4789.3,4789.2,10.8232414]
[1756045243749,2.002,4789.3,4789.2,14.8332414]
[1756045244787,2.002,4789.3,4789.2,14.8292414]
[1756045245136,2.002,4789.3,4789.2,10.8192414]
[1756045245338,2.002,4789.3,4789.2,7.2022414]
[1756045245532,2.002,4789.3,4789.2,10.8192414]
[1756045246004,2.002,4789.3,4789.2,0.3994]
[1756045246296,2.002,4789.3,4789.2,8.9623]
[1756045246579,2.002,4789.3,4789.2,6.1756]
[1756045246963,2.002,4789.3,4789.2,9.6223]
[1756045247502,2.002,4789.3,4789.2,11.7103314]
[1756045247679,2.002,4789.3,4789.2,12.88136454]
[1756045247852,2.002,4789.3,4789.2,42.88136454]
[1756045249649,2.002,4789.3,4789.2,30.52740754]
[1756045250056,2.002,4789.3,4789.2,27.96572854]
[1756045250351,2.002,4789.3,4789.2,18.83789854]
[1756045250556,2.002,4789.3,4789.2,15.85468954]
[1756045251096,2.002,4789.3,4789.2,18.39065154]
[1756045251851,2.002,4789.3,4789.2,8.60536454]